Cogmind - Beta 14 @@@ ROGUE MODE // 2024.08.25 @ 02:10:41 Player: Gyro! Result: Destroyed by G-50 Soldier with Heavy Laser Performance ------------- Evolutions (1) 500 Regions Visited (5) 1000 Robots Destroyed (18) 90 Value Destroyed (313) 313 Prototype IDs (1) 20 Alien Tech Used (0) 0 Bonus (703) 703 TOTAL SCORE: 2626 Bonus ------- Follower Combat Kills 261 Met Imprinter 300 Was Imprinted 300 Friendly Fire -158 Cogmind --------- Core Integrity 0/400 Matter 270/300 Energy 100/100 System Corruption 0% Temperature Cool (9) Movement Core (150) Ox2 Location -6/Proximity Caves Parts ------- > --- POWER (2) -------- (None) > --- PROPULSION (2) --- (None) > --- UTILITY (3) ------ Cooling System Small Storage Unit > --- WEAPON (2) ------- (None) > --- INVENTORY (8) ---- Improved Heat Sink Signal Interpreter Advanced Beam Cannon Peak State ------------ > --- POWER ------------ Light Angular Momentum Engine > --- PROPULSION ------- Carbon-fiber Leg Flexi-carbon Leg > --- UTILITY ---------- Cooling System Small Storage Unit > --- WEAPON ----------- Plasma Cutter > --- INVENTORY -------- Wheel Improved Heat Sink Signal Interpreter Advanced Beam Cannon [Rating: 18] Favorites ----------- Power Light Ion Engine Engine Light Ion Engine Power Core Light Nuclear Core Propulsion Wheel Leg Flexi-carbon Leg Wheel Wheel Utility Small Storage Unit Device Cooling System Storage Small Storage Unit Protection Light Armor Plating Weapon EM Pulse Gun Energy Gun EM Pulse Gun Energy Cannon Advanced Beam Cannon Special Weapon Plasma Cutter Build | -11 -10 -9 -9 -7 -6 ------- Run | Yrd Mat Mat Min Zio Pro Slots Evolved 2 | . . 2 . . . Power 1 | . . 1 . . . Propulsion . | . . . . . . Utility 1 | . . 1 . . . Weapon . | . . . . . . Parts Attached 34 | 5 4 5 . 8 12 Power 9 | 1 . 2 . 4 2 Engine 7 | 1 . 2 . 3 1 Core 2 | . . . . 1 1 Reactor . | . . . . . . Propulsion 6 | 2 . . . . 4 Treads . | . . . . . . Leg 3 | . . . . . 3 Wheel 3 | 2 . . . . 1 Hover . | . . . . . . Flight . | . . . . . . Utility 6 | . 4 2 . . . Device 4 | . 2 2 . . . Storage 1 | . 1 . . . . Processor . | . . . . . . Hackware . | . . . . . . Protection 1 | . 1 . . . . Artifact . | . . . . . . Weapon 13 | 2 . 1 . 4 6 Energy Gun 9 | 2 . 1 . 2 4 Energy Cannon 2 | . . . . 1 1 Ballistic Gun . | . . . . . . Ballistic Cannon . | . . . . . . Launcher . | . . . . . . Special Weapon 2 | . . . . 1 1 Impact Weapon . | . . . . . . Slashing Weapon . | . . . . . . Piercing Weapon . | . . . . . . Special Melee Weapon . | . . . . . . Unidentified Prototypes 1 | . . . . 1 . Parts Lost 16 | . 1 1 . . 14 Power 5 | . . 1 . . 4 Propulsion 3 | . . . . . 3 Utility 2 | . 1 . . . 1 Weapon 6 | . . . . . 6 Highest Loss Streak 5 | . 1 1 . . 5 To Critical Strikes . | . . . . . . Average Slot Usage (%) 94 | . 96 91 100 100 86 Engine 19 | . 14 20 22 22 16 Wheel 21 | . 28 22 22 22 18 Device 18 | . 1 15 22 22 17 Storage 11 | . 12 11 11 11 11 Protection 1 | . 11 . . . . Energy Gun 19 | . 28 22 22 21 14 Peak Build Rating 18 | 5 10 12 11 16 18 Average Rating 11 | 3 7 10 11 11 13 On Entrance 8 | . 5 10 11 11 11 Naked Turns . | . . . . . . Heaviest Build 20 | 9 17 18 18 20 20 Greatest Support 35 | 20 20 20 20 20 35 Greatest Overweight (x) 2 | . . . . . 2 Average Overweight (x) . | . . . . . . Largest Inventory Capacity 8 | 5 8 8 8 8 8 Average Capacity 7 | 5 7 8 8 8 8 Most Carried 8 | 5 8 8 6 8 8 Average Carried 7 | 1 6 6 6 7 6 Final Capacity 8 | 5 8 8 8 8 8 Final Carried 8 | 2 7 6 6 8 3 Class Distribution -------------------- 100% | Mutant Dominant Class ---------------- Mutant | -10/Materials Mutant | -9/Materials Mutant | -9/Mines Mutant | -7/Zion Mutant | -6/Proximity Caves Resources | -11 -10 -9 -9 -7 -6 ----------- Run | Yrd Mat Mat Min Zio Pro Matter Collected 465 | 205 85 25 . 100 50 Remotely . | . . . . . . Salvage Created 845 | 30 135 364 . 178 138 Parts 44 | 3 14 21 . 1 5 Haulers Intercepted . | . . . . . . Recyclers Shooed 3 | . . 3 . . . Parts Field Recycled . | . . . . . . Retrieved Matter . | . . . . . . Parts Self-Destructed 8 | . . . . 1 7 Prevented 15 | . . . . . 15 Kills | -11 -10 -9 -9 -7 -6 ------- Run | Yrd Mat Mat Min Zio Pro Combat Hostiles Destroyed 8 | . 2 5 . . 1 Guns 5 | . 2 3 . . . Cannons 1 | . . . . . 1 AOE 2 | . . 2 . . . Classes Destroyed 8 | 1 2 3 . . 2 Builder 3 | . . 3 . . . Tunneler 1 | 1 . . . . . Recycler 2 | . . 2 . . . Watcher 3 | . 2 1 . . . Swarmer 4 | . . 4 . . . Grunt 3 | . 2 1 . . . Hunter 1 | . . . . . 1 Mutant 1 | . . . . . 1 Best Kill Streak 10 | 1 2 10 . . 1 Combat Bots Only 4 | . 2 4 . . 1 Max Kills in Single Turn 2 | 1 1 2 . . 1 Gunslinging . | . . . . . . Exploded 2 | . . 2 . . . Melee . | . . . . . . Uniques/NPCs Destroyed . | . . . . . . Combat | -11 -10 -9 -9 -7 -6 -------- Run | Yrd Mat Mat Min Zio Pro Hostile Shots Fired 133 | . 21 17 . . 95 Missed 54 | . 11 8 . . 35 Damage Taken 1369 | . 117 144 . . 1108 Core 429 | . 10 27 . . 392 Absorbed by Shields . | . . . . . . Core Remaining (%) 98 | 100 96 . . . . Volleys Fired 66 | 4 6 16 . 23 17 Largest 2 | 2 2 2 . 2 2 Hottest 108 | 80 80 80 . 80 108 Shots Fired 114 | 8 12 32 . 29 33 Gun 89 | 8 12 32 . 12 25 Cannon 8 | . . . . 2 6 Launcher . | . . . . . . Special 17 | . . . . 15 2 Kinetic . | . . . . . . Thermal 25 | . . . . 17 8 Explosive . | . . . . . . Electromagnetic 89 | 8 12 32 . 12 25 Robot Hit Streak 19 | 4 5 18 . 19 6 Robot Miss Streak 5 | 3 1 2 . 1 5 Penetration Max . | . . . . . . Secondary Targets 1 | . 1 . . . . Max Gunslinging Chain 1 | . 1 . . . . Shots Hit Robots 71 | 4 8 23 . 16 20 Core Hits 31 | 1 6 14 . 5 5 Critical Kills . | . . . . . . Critical Parts Destroyed . | . . . . . . Critical Strikes 2 | . . 1 . . 1 Corrupt 1 | . . 1 . . . Sever 1 | . . . . . 1 Melee Attacks . | . . . . . . Impact . | . . . . . . Slashing . | . . . . . . Piercing . | . . . . . . Sneak Attacks . | . . . . . . Combat Hostiles . | . . . . . . Follow-up Attacks . | . . . . . . Damage Inflicted 1412 | 73 128 696 . 200 315 Guns 711 | 73 128 283 . 38 189 Cannons 103 | . . . . . 103 Explosions 413 | . . 413 . . . Melee . | . . . . . . Ramming . | . . . . . . Kinetic . | . . . . . . Thermal 701 | . . 413 . 162 126 Explosive . | . . . . . . Electromagnetic 711 | 73 128 283 . 38 189 Impact . | . . . . . . Slashing . | . . . . . . Piercing . | . . . . . . Highest Corruption . | . . . . . . Average Corruption . | . . . . . . Corruption Purged . | . . . . . . Corruption Blocked . | . . . . . . Overload Shots . | . . . . . . Overflow Damage 32 | . . 26 . 6 . Projectiles 6 | . . . . 6 . Explosions 26 | . . 26 . . . Melee . | . . . . . . Knockbacks . | . . . . . . Impact . | . . . . . . Kinetic . | . . . . . . Secondary . | . . . . . . Self-Inflicted Damage 70 | . . 70 . . . Shots 3 | . . 3 . . . Rammed . | . . . . . . Targets Rammed . | . . . . . . Kicked . | . . . . . . Crushed . | . . . . . . Highest Temperature 129 | 36 129 1 . . 32 Average Temperature 38 | 20 54 1 . . 18 Received Heat Transfer 288 | . 51 18 . . 219 Siege Activations . | . . . . . . Robots Corrupted . | . . . . . . Combat Hostiles . | . . . . . . Parts Fried 2 | . . 2 . . . Impact Corruptions . | . . . . . . Robots Melted . | . . . . . . Combat Hostiles . | . . . . . . Parts Melted . | . . . . . . Heat Transferred 1364 | . . 550 . 555 259 Parts Sabotaged . | . . . . . . Parts Stolen . | . . . . . . Parts Stripped . | . . . . . . Power Chain Reactions 5 | . . 5 . . . Alert | -11 -10 -9 -9 -7 -6 ------- Run | Yrd Mat Mat Min Zio Pro Peak Influence 264 | 5 179 264 102 . . Initial 102 | . 3 75 102 . . Average 96 | 1 58 169 102 . . Maximum Alert Level 1 | . . 1 . . . Low Security (%) 84 | 100 100 53 100 . . Level 1 15 | . . 46 . . . Level 2 . | . . . . . . Level 3 . | . . . . . . Level 4 . | . . . . . . Level 5 . | . . . . . . High Security . | . . . . . . Max Security . | . . . . . . Squads Dispatched 3 | . . 2 . . 1 Investigation 1 | . . 1 . . . Extermination . | . . . . . . Reinforcement 1 | . . 1 . . . Assault 1 | . . . . . 1 Garrison . | . . . . . . Intercept . | . . . . . . Searches Triggered . | . . . . . . Construction Impeded . | . . . . . . Haulers Reinforced . | . . . . . . Active Scanning Responses . | . . . . . . Cargo Convoy Interrupts . | . . . . . . Stealth | -11 -10 -9 -9 -7 -6 --------- Run | Yrd Mat Mat Min Zio Pro Distress Signals 1 | . 1 . . . . Communications Jammed . | . . . . . . Distress Signals . | . . . . . . Times Spotted 41 | . 10 6 . . 25 Peak Tracking Total 9 | . 6 4 . . 9 Tactical Retreats 8 | . 2 . . . 6 Traps | -11 -10 -9 -9 -7 -6 ------- Run | Yrd Mat Mat Min Zio Pro Traps Triggered 1 | . . 1 . . . Indirectly . | . . . . . . Trap Hack Attempts . | . . . . . . Triggered . | . . . . . . Disarmed . | . . . . . . Reprogrammed . | . . . . . . Reused . | . . . . . . Traps Extracted . | . . . . . . Installed . | . . . . . . Triggered . | . . . . . . Machines | -11 -10 -9 -9 -7 -6 ---------- Run | Yrd Mat Mat Min Zio Pro Machines Disabled 2 | . 1 . . 1 . Max in Single Turn 1 | . 1 . . 1 . Machines Repaired . | . . . . . . Machines Dismantled 1 | . . . . 1 . Machines Sabotaged . | . . . . . . Overloaded Fab Kills . | . . . . . . Hacking | -11 -10 -9 -9 -7 -6 --------- Run | Yrd Mat Mat Min Zio Pro Machines Accessed 1 | . 1 . . . . Terminals 1 | . 1 . . . . Fabricators . | . . . . . . Repair Stations . | . . . . . . Recycling Units . | . . . . . . Scanalyzers . | . . . . . . Garrison Access . | . . . . . . Total Hacks 4 | . 4 . . . . Successful 4 | . 4 . . . . Failed . | . . . . . . Catastrophic . | . . . . . . Database Lockouts . | . . . . . . Manual . | . . . . . . Terminals 4 | . 4 . . . . Fabricators . | . . . . . . Repair Stations . | . . . . . . Recycling Units . | . . . . . . Scanalyzers . | . . . . . . Garrison Access . | . . . . . . Terminal Hacks 4 | . 4 . . . . Record 3 | . 3 . . . . Zone Layout 1 | . 1 . . . . Fabricator Hacks . | . . . . . . Repair Station Hacks . | . . . . . . Recycling Unit Hacks . | . . . . . . Scanalyzer . | . . . . . . Garrison Access Hacks . | . . . . . . Unauthorized Hacks . | . . . . . . Terminals . | . . . . . . Fabricators . | . . . . . . Repair Stations . | . . . . . . Recycling Units . | . . . . . . Scanalyzers . | . . . . . . Garrison Access . | . . . . . . Data Cores Recovered . | . . . . . . Used . | . . . . . . Hacking Detections 1 | . 1 . . . . Full Trace Events . | . . . . . . Feedback Events . | . . . . . . Feedback Blocked . | . . . . . . Robot Schematics Acquired 4 | . . . . 4 . Robots Built . | . . . . . . Authchips . | . . . . . . Time . | . . . . . . Total Robot Build Rating . | . . . . . . Part Schematics Acquired 15 | . . . . 15 . Parts Built . | . . . . . . Authchips . | . . . . . . Time . | . . . . . . Total Part Build Rating . | . . . . . . Parts Repaired . | . . . . . . Time . | . . . . . . Parts Recycled . | . . . . . . Recycled Matter . | . . . . . . Retrieved Matter . | . . . . . . Retrieved Components . | . . . . . . Parts Scanalyzed . | . . . . . . Part Schematics Acquired . | . . . . . . Parts Damaged . | . . . . . . Bothacking | -11 -10 -9 -9 -7 -6 ------------ Run | Yrd Mat Mat Min Zio Pro Used RIF Installer . | . . . . . . Robots Hacked . | . . . . . . Non-combat . | . . . . . . Combat . | . . . . . . Robot Hacks Applied . | . . . . . . Relay Couplers Released . | . . . . . . Fabnet Peak Effective % . | . . . . . . Robots Rewired . | . . . . . . Allies Hacked . | . . . . . . Hacks Repelled . | . . . . . . Allies | -11 -10 -9 -9 -7 -6 -------- Run | Yrd Mat Mat Min Zio Pro Total Allies 4 | . . . . 4 . Largest Group 4 | . . . . 4 4 Highest-Rated Group 152 | . . . . 152 152 Highest-Rated Ally 40 | . . . . 40 40 Total Orders . | . . . . . . Ally Attacks 42 | . . . . . 42 Total Damage 1016 | . . . . . 1016 Kills 6 | . . . . . 6 Allies Corrupted . | . . . . . . Allies Melted 1 | . . . . . 1 Intel | -11 -10 -9 -9 -7 -6 ------- Run | Yrd Mat Mat Min Zio Pro Robot Analysis Total . | . . . . . . Derelict Logs Recovered 1 | . . . . 1 . Drone Launches . | . . . . . . Drone Recoveries . | . . . . . . Exploration | -11 -10 -9 -9 -7 -6 ------------- Run | Yrd Mat Mat Min Zio Pro Turns Passed 2594 | 66 235 195 104 1113 881 Spaces Moved 2521 | 49 239 159 93 1134 847 Core 12 | 11 . . . . 1 Treads . | . . . . . . Legs 101 | . . . . . 101 Wheels 2408 | 38 239 159 93 1134 745 Hover . | . . . . . . Flight . | . . . . . . Fastest Speed 50 | 50 80 80 80 80 80 Average Speed 81 | 73 80 80 80 80 84 Slowest Speed 150 | 80 80 80 80 80 150 Overloaded Moves . | . . . . . . Propulsion Burnouts . | . . . . . . Robots Hopped . | . . . . . . Cave-ins Triggered . | . . . . . . Exploration Rate (%) 40 | 3 35 18 22 90 72 Regions Visited 5 Branch Regions 3 Pre-discovered Areas 1 | . . . . 1 . Known Exits Taken . | . . . . . . Unknown Exits Taken 5 | 1 1 1 1 1 . Scrap Searched 4 | . . . . 3 1 Spaces Dug . | . . . . . . Terrain Destroyed 15 | . . 15 . . . Melee . | . . . . . . Projectile . | . . . . . . AOE 15 | . . 15 . . . Terrain Rammed . | . . . . . . Walls Destroyed . | . . . . . . Machines Disabled . | . . . . . . Actions | -11 -10 -9 -9 -7 -6 --------- Run | Yrd Mat Mat Min Zio Pro Total 2918 | 70 271 197 122 1285 973 Wait 240 | 6 12 5 30 100 87 Move 2516 | 48 238 158 92 1133 847 Hop . | . . . . . . Pick Up 30 | 7 9 7 . 4 3 Fast Attach . | . . . . . . Attach 22 | 5 4 4 . . 9 Detach 3 | . 1 1 . . 1 Swap 12 | . . 1 . 8 3 Drop 9 | . 1 5 . 3 . Fire 66 | 4 6 16 . 23 17 Melee . | . . . . . . Ram . | . . . . . . Kick . | . . . . . . Crush . | . . . . . . Escape Stasis . | . . . . . . Rewire 16 | . . . . 10 6 Trap . | . . . . . . Miscellaneous 4 | . . . . 4 . Route ------- -11/Scrapyard -10/Materials -9/Materials -9/Mines -7/Zion -6/Proximity Caves History --------- Turn | Location | Event 8 | -11/Scrapyard | Discovered new exit (range 15) 67 | -11/Scrapyard | Entered Materials 148 | -10/Materials | Discovered new exit (range 14) 302 | -10/Materials | Entered another Materials area 302 | -9/Materials | Evolved 2 slots: Power x1, Utility x1 323 | -9/Materials | Build established: Mutant 480 | -9/Materials | Discovered new exit (range 7) 497 | -9/Materials | Entered Mines 498 | -9/Mines | Met a Derelict bent on vengeance 579 | -9/Mines | A Derelict revealed a hidden shortcut to a safe place 601 | -9/Mines | Entered Zion 683 | -7/Zion | Learned Factory terminal intel 704 | -7/Zion | Discovered new exit (range 15) 923 | -7/Zion | Learned location of Warlord (-5) 1082 | -7/Zion | Met Imprinter 1102 | -7/Zion | Imprinted 1104 | -7/Zion | Declared Zion's savior 1714 | -7/Zion | Entered Proximity Caves 1714 | -6/Proximity Caves | Accompanied by 4 allies 2219 | -6/Proximity Caves | Spotted B-75 Beast 2436 | -6/Proximity Caves | Attracted the attention of an 0b10 outpost 2484 | -6/Proximity Caves | Lost 5 parts (2p1n2w) 2541 | -6/Proximity Caves | Core integrity fell below 50% 2558 | -6/Proximity Caves | Lost 3 parts (1p1n1w) 2589 | -6/Proximity Caves | Core integrity fell below 20% 2595 | -6/Proximity Caves | Destroyed by G-50 Soldier with Heavy Laser Last Messages --------------- 02453_ Lgt. Nuclear Core destroyed. 02453_ Penetrated by Slug. 02453_ EM Shotgun destroyed. 02456_ S-27 Virus destroyed. 02456_ Penetrated by Slug. 02499_ C-30 ARC bursts open, deploying its payload. 02499_ G-67 Veteran unfolds itself. 02499_ L-41 Fighter unfolds itself. 02499_ G-50 Soldier unfolds itself. 02499_ Carbon-fiber Leg destroyed. 02517_ Attempting to rewire Y-54 Guardian. 02526_ Lgt. Angular Momentum Engine destroyed. 02527_ Plasma Cutter destroyed. 02527_ Slug penetrates G-50 Soldier. 02563_ M-28 Smith repairs B-48 Gladiator. 02588_ Flexi-carbon Leg severed. 02590_ M-28 Smith repairs G-50 Soldier. 02592_ Critical hit (Burn: +37). 02594_ Wheel destroyed. Map ----- +----------------------------------------------------+ | ?????????????????????????????????????????????????? | | ?????????????????????????????????????????????????? | | ?????????????????????????????????????????????????? | | ?????????????????????????????????????????????????? | | ?????????????????????????????????????????????????? | | ?????????????????????????????????????????????????? | | ?????????????????????????????????????????????????? | | ?????????????????????????????????????????????????? | | ?????????????????????????????????????????????????? | | ?????????????????????????????????????????????????? | | ?????????????????????????????????????????????????? | | ?????????????##########??????????????????????????? | | ??????????#### ###???###??????????????????? | | ???????#### ##?# ##?????????????????? | | ???????# ## #?????????????????? | | ???????# ## ##????????????????? | | ??????## ## #??# ##???????????????? | | ?????## #### bg #??# #???????????????? | | ?????# #??# bm ##### #????????????????? | | ?????### ##?# g g### #?????????????????? | | ???????## #?## g ##?????????????????? | | ????????# ##??## = ##??????????????????? | | ??####### ##???## l######???????????????????? | | ### ## ###??##### ####?????????????????????? | | #??????## ## #?????????????????? | | #???????## @ #?????????????????? | | ##????????## ##?????????????????? | | ### ### #??????????# ##??????????????????? | | #?## ### ##?????????? ###???????????????????? | | ###### ##??????????? #?????????????????????? | | #??## ##???????????# #?????????????????????? | | #???# ##??????????# #?????????????????????? | | "##?### ###????????# #?????????????????????? | | #### #????????# ?????????????????????? | | ## ######## #????????? ?????????????????????? | | ## #""""""# #####?????###?????????????????????? | | ### # # ####??????????????????????????? | | #?# + / #??????????????????????????? | | #?# ###//### ##??????????????????????????? | | ##?# # # ###???????????????????????????? | | #??# # # ####?????????????????????????????? | | #### ## ## ##????????????????????????????????? | | ## #?????????????????????????????????? | | % ######?????????????????????????????????? | | ##??????????????????????????????????????? | | #???????????????????????????????????????? | | # ## #??????????????????????????????????????? | | # #### #??????????????????????????????????????? | | # ##??#####??????????????????????????????????????? | | ###??????????????????????????????????????????????? | +----------------------------------------------------+ Best States ------------- Heat Dissipation 50 Energy Generation 19 Energy Capacity 275 Matter Stores 300 Matter Capacity 300 Sight Range 16 Robot Scan Range 14 Terrain Scan Density 10 Armor Coverage 150 Evasion (%) 55 Item Schematics ----------------- Proton Cannon | -7/Zion | Archive Plasma Cannon | -7/Zion | Archive Imp. Carbon-fiber Leg | -7/Zion | Archive Focal Shield | -7/Zion | Archive Arm. Medium Treads | -7/Zion | Archive Imp. Melee Analysis Suite | -7/Zion | Archive Lgt. Angular Momentum Engine | -7/Zion | Archive Hvy. Laser | -7/Zion | Archive Imp. Particle Charger | -7/Zion | Archive Powered Hammer | -7/Zion | Archive Angular Momentum Engine | -7/Zion | Archive Component Analysis Suite | -7/Zion | Archive Fusion Compressor | -7/Zion | Archive Imp. Field Recycling Unit | -7/Zion | Archive Mass Driver | -7/Zion | Archive Robot Schematics ------------------ L-31 Rogue | -7/Zion | Archive Y-45 Defender | -7/Zion | Archive P-60 Hacker | -7/Zion | Archive C-57 Dissector | -7/Zion | Archive Fabricated ------------ Nothing Alien Tech Used ----------------- None Achievements -------------- Robot Respite The One Challenges ------------ None Game ------ Seed PlatingChipBrace Manual? 0 Play Time 00:57:56 Cumulative 12.1 hours Start 2024.08.25 @ 01:03:10 End 2024.08.25 @ 02:10:41 Sessions 1 Manual Loads 0 Difficulty Rogue Special Mode None Game No. 14 Rogue 14 Adventurer 0 Explorer 0 Win Type - Total 0 Types 0/0/0/0/0/0/0/0/0 Lore% 3 Gallery% 13 Achievement% 13 Wizard Run 0 Options --------- Layout 1 ASCII 0 Keyboard 0 Movement Numpad Keybinds 0 Fullscreen 2 Font 24/Smallcaps Map View 50x35 Zoom Use 1% Tactical HUD 1 Map Filters NONE Filters NONE Steam 1 RUN: 5dab0d3e-72a8-423b-8873-8f4e0262d217